fUSD/lending_fUSD_20250415
["ID","MTS","AMOUNT","RATE_DAILY","PERIOD"]
[358093846,1744707031599,-615.41,0.00017673,2]
[358093847,1744707031608,-218.99673129,0.00017739,2]
[358093848,1744707031617,-178.91,0.00017744,2]
[358093849,1744707031626,-32.06429452,0.00017767,2]
[358093850,1744707031638,-117.93570548,0.00017767,2]
[358093851,1744707031647,-389.10200357,0.00017792,2]
[358093852,1744707031657,-157.866,0.000178,2]
[358093853,1744707031666,-151.9294947,0.0001782,2]
[358093854,1744707031675,-250.0,0.00017838,2]
[358093855,1744707031685,-166.62,0.00017869,2]
[358093856,1744707031694,-300.0,0.00017899,2]
[358093857,1744707031704,-254.0,0.00017899,2]
[358093858,1744707031713,-2804.70010744,0.000179,2]
[358093859,1744707031726,-1133.11323801,0.000179,2]
[358093860,1744707031739,-352.7321067,0.000179,2]
[358093861,1744707031749,-1620.51027677,0.000179,2]
[358093862,1744707031761,-803.28453,0.000179,2]
[358093863,1744707031771,-1028.79,0.000179,2]
[358093864,1744707031782,-750.37477044,0.000179,2]
[358093865,1744707031794,-2459.81248633,0.000179,2]
[358093866,1744707031805,-718.78087629,0.000179,2]
[358093867,1744707031818,-10173.95825475,0.000179,2]
[358093868,1744707031837,-844.0413248,0.000179,2]
[358093869,1744707031847,-11847.35441058,0.000179,2]
[358093870,1744707031858,-4838.834284,0.000179,2]
[358093871,1744707031867,-420.29375229,0.000179,2]
[358093872,1744707031883,-1245.89159501,0.000179,2]
[358093873,1744707031893,-963.81641169,0.000179,2]
[358093874,1744707031903,-5209.85041241,0.000179,2]
[358093875,1744707031914,-2771.705,0.000179,2]
[358093876,1744707031925,-4545.45298751,0.000179,2]
[358093877,1744707031936,-5974.8978514,0.000179,2]
[358093878,1744707031947,-351.55287298,0.000179,2]
[358093881,1744707031962,-23653.4887254,0.000179,2]
[358093883,1744707031973,-356.42447094,0.000179,2]
[358093885,1744707031984,-2056.88939051,0.000179,2]
[358093886,1744707031994,-1434.24613958,0.000179,2]
[358093888,1744707032009,-34544.57509582,0.000179,2]
[358093890,1744707032020,-7567.21692503,0.000179,2]
[358093902,1744707037891,-302.74,0.000179,2]
[358093903,1744707037903,-1508.39477938,0.000179,2]
[358093904,1744707037913,-248.33051974,0.00017989,2]
[358093905,1744707037923,-668.65185757,0.00017989,2]
[358093906,1744707037932,-207.4,0.00017989,2]
[358093907,1744707037941,-150.0,0.00017989,2]
[358093908,1744707037953,-152.0,0.00017989,2]
[358093909,1744707037962,-1122.0,0.00017989,2]
[358093910,1744707037971,-296.201,0.00017998,2]
[358093911,1744707037980,-506.48145508,0.00017999,2]
[358093912,1744707037989,-500.0,0.00017999,2]
[358093913,1744707037998,-500.0,0.00017999,2]
[358093914,1744707038008,-316.04038813,0.00017999,2]
[358093915,1744707038019,-183.95961187,0.00017999,2]
[358093916,1744707038028,-2118.11667958,0.00017999,2]
[358093917,1744707038039,-114.88332042,0.00017999,2]
[358093918,1744707038048,-1371.0,0.00017999,2]
[358093919,1744707038058,-500.0,0.00017999,2]
[358093920,1744707038067,-500.0,0.00017999,2]
[358093921,1744707038076,-500.0,0.00017999,2]
[358093922,1744707038085,-500.0,0.00017999,2]
[358093923,1744707038095,-443.578,0.00017999,2]
[358093924,1744707038104,-1230.94,0.00017999,2]
[358093925,1744707038113,-1230.94,0.00017999,2]
[358093926,1744707038122,-1230.94,0.00017999,2]
[358093927,1744707038131,-1230.94,0.00017999,2]
[358093928,1744707038141,-1230.94,0.00017999,2]
[358093929,1744707038150,-1230.94,0.00017999,2]
[358093930,1744707038159,-1230.94,0.00017999,2]
[358093931,1744707038168,-1230.94,0.00017999,2]
[358093932,1744707038177,-1230.94,0.00017999,2]
[358093933,1744707038186,-1230.94,0.00017999,2]
[358093934,1744707038195,-1230.94,0.00017999,2]
[358093935,1744707038205,-1230.94,0.00017999,2]
[358093936,1744707038214,-1230.94,0.00017999,2]
[358093937,1744707038223,-1230.94,0.00017999,2]
[358093938,1744707038233,-1230.94,0.00017999,2]
[358093939,1744707038242,-1230.94,0.00017999,2]
[358093940,1744707038251,-1230.94,0.00017999,2]
[358093941,1744707038261,-1230.94,0.00017999,2]
[358093942,1744707038270,-1230.94,0.00017999,2]
[358093943,1744707038279,-1230.94,0.00017999,2]
[358093944,1744707038289,-1230.94,0.00017999,2]
[358093945,1744707038298,-1230.94,0.00017999,2]
[358093946,1744707038307,-1230.94,0.00017999,2]
[358093947,1744707038316,-1230.95000981,0.00017999,2]
[358093948,1744707038325,-150.0,0.00017999,2]
[358093949,1744707038334,-500.0,0.00017999,2]
[358093950,1744707038343,-500.0,0.00017999,2]
[358093951,1744707038353,-500.0,0.00017999,2]
[358093952,1744707038362,-500.0,0.00017999,2]
[358093953,1744707038371,-500.0,0.00017999,2]
[358093954,1744707038380,-500.0,0.00017999,2]
[358093955,1744707038390,-500.0,0.00017999,2]
[358093956,1744707038399,-500.0,0.00017999,2]
[358093957,1744707038408,-500.0,0.00017999,2]
[358093958,1744707038418,-500.0,0.00017999,2]
[358093959,1744707038427,-500.0,0.00017999,2]
[358093960,1744707038436,-500.0,0.00017999,2]
[358093962,1744707038445,-500.0,0.00017999,2]
[358093963,1744707038454,-500.0,0.00017999,2]
[358093964,1744707038463,-500.0,0.00017999,2]
[358093965,1744707038473,-500.0,0.00017999,2]
[358093966,1744707038482,-500.0,0.00017999,2]
[358093967,1744707038492,-500.0,0.00017999,2]
[358093968,1744707038502,-500.0,0.00017999,2]
[358093969,1744707038511,-500.0,0.00017999,2]
[358093970,1744707038520,-500.0,0.00017999,2]
[358093971,1744707038528,-500.0,0.00017999,2]
[358093972,1744707038537,-500.0,0.00017999,2]
[358093973,1744707038546,-601.57801058,0.00017999,2]
[358093974,1744707038555,-500.0,0.00017999,2]
[358093975,1744707038565,-500.0,0.00017999,2]
[358093976,1744707038574,-500.0,0.00017999,2]
[358093977,1744707038583,-500.0,0.00017999,2]
[358093978,1744707038592,-500.0,0.00017999,2]
[358093979,1744707038601,-500.0,0.00017999,2]
[358093980,1744707038610,-500.0,0.00017999,2]
[358093981,1744707038619,-500.0,0.00017999,2]
[358093982,1744707038628,-500.0,0.00017999,2]
[358093983,1744707038637,-500.0,0.00017999,2]
[358093984,1744707038646,-454.99190405,0.00017999,2]
[358093985,1744707038655,-500.0,0.00017999,2]
[358093986,1744707038664,-500.0,0.00017999,2]
[358093987,1744707038673,-500.0,0.00017999,2]
[358093988,1744707038682,-500.0,0.00017999,2]
[358093989,1744707038691,-500.0,0.00017999,2]
[358093990,1744707038700,-500.0,0.00017999,2]
[358093991,1744707038709,-302.02,0.00017999,2]
[358093992,1744707038719,-614.99835066,0.00017999,2]
[358093993,1744707038728,-500.0,0.00017999,2]
[358093994,1744707038737,-500.0,0.00017999,2]
[358093995,1744707038746,-207.37041985,0.00017999,2]
[358093996,1744707038755,-500.0,0.00017999,2]
[358093997,1744707038765,-500.0,0.00017999,2]
[358093998,1744707038774,-500.0,0.00017999,2]
[358093999,1744707038783,-500.0,0.00017999,2]
[358094000,1744707038792,-500.0,0.00017999,2]
[358094001,1744707038802,-500.0,0.00017999,2]
[358094002,1744707038812,-500.0,0.00017999,2]
[358094003,1744707038822,-500.0,0.00017999,2]
[358094004,1744707038834,-500.0,0.00017999,2]
[358094005,1744707038843,-500.0,0.00017999,2]
[358094006,1744707038853,-500.0,0.00017999,2]
[358094007,1744707038863,-500.0,0.00017999,2]
[358094008,1744707038873,-500.0,0.00017999,2]
[358094009,1744707038884,-500.0,0.00017999,2]
[358094010,1744707038893,-544.93126776,0.00017999,2]
[358094011,1744707038903,-127426.63838466,0.00018,2]
[358094012,1744707038912,-1407.0,0.00018,2]
[358094013,1744707038922,-27340.01108019,0.00018,2]
[358094015,1744707039088,-71622.39680208,0.00018,2]
[358094016,1744707039104,-1189.98,0.00018,2]
[358094017,1744707039114,-2786.62273448,0.00018,2]
[358094023,1744707041291,-24.14232446,0.00018,2]
[358094024,1744707041311,-834.32733642,0.00018,2]
[358094025,1744707041324,-644.49071715,0.00018,2]
[358094026,1744707041342,-5387.7872,0.00018,2]
[358094027,1744707041354,-69103.22081542,0.00018,2]
[358094028,1744707041366,-17478.03079189,0.00018,2]
[358094029,1744707041377,-14993.08033504,0.00018,2]
[358094030,1744707041389,-17764.83801545,0.00018,2]
[358094031,1744707041401,-1998.88218776,0.00018,2]
[358094032,1744707041423,-778.54681402,0.00018,2]
[358094049,1744707044504,-315.05535817,0.00018,2]
[358094050,1744707044516,-498.08237988,0.00018,2]
[358094051,1744707044528,-28317.00448976,0.00018,2]
[358094052,1744707044540,-1005.485,0.00018,2]
[358094053,1744707044551,-903.9116701,0.00018,2]
[358094054,1744707044563,-751.0,0.00018,2]
[358094055,1744707044574,-20073.70747152,0.00018,2]
[358094067,1744707045690,-375.97630379,0.00018,2]
[358094068,1744707045737,-890.02369621,0.00018,2]
[358094069,1744707045747,-4329.733721,0.00018,2]
[358094070,1744707045758,-858.43,0.00018,2]
[358094071,1744707045769,-24095.0,0.00018,2]
[358094072,1744707045844,-31200.0,0.00018,2]
[358094073,1744707045897,-7348.30770146,0.00018,2]
[358094081,1744707241543,350.0,0.00019482,12]
[358094082,1744707305095,1188.0,0.00017,2]
[358094083,1744707306799,1188.0,0.00017,2]
[358094084,1744707308652,1188.0,0.00017,2]
[358094085,1744707310357,1188.0,0.00017,2]
[358094087,1744707362331,350.0,0.00019482,12]
[358094090,1744707455176,408.68,0.00017341,2]
[358094091,1744707466246,649.79,0.00015423,2]
[358094093,1744707606617,232.649437,0.00017461,2]
[358094094,1744707674994,171.25,0.00013873,2]
[358094095,1744707683225,1000.0,0.00017341,2]
[358094096,1744707759539,1027.03,0.00016861,2]
[358094097,1744707764508,250.0,0.00017341,2]
[358094100,1744707848028,2689.620629,7.945e-05,2]
[358094107,1744707940533,18880.86,0.00016941,2]
[358094108,1744708125002,-245.0,0.0001759,2]
[358094109,1744708143546,301.39524078,0.00017502,2]
[358094110,1744708152596,-5.0,0.0001759,2]
[358094111,1744708197587,-188.0,0.00017618,2]
[358094112,1744708231852,-700.0,0.00017618,2]
[358094113,1744708231863,-765.65674192,0.00017618,2]
[358094114,1744708231872,-649.79,0.00017687,2]
[358094115,1744708231881,-13401.54653335,0.00017699,2]
[358094116,1744708231890,-3529.86588023,0.000177,2]
[358094117,1744708231899,-429.3115487,0.00017718,2]
[358094118,1744708231908,-4835.7888931,0.00017721,2]
[358094119,1744708232008,-473.5332,0.00017721,2]
[358094123,1744708238038,-1193.96644483,0.00017721,2]
[358094124,1744708238092,-6898.25799539,0.00017721,2]
[358094125,1744708238101,-3529.86588014,0.00017722,2]
[358094126,1744708238110,-300.0,0.00017743,2]
[358094127,1744708238119,-300.0,0.00017743,2]
[358094128,1744708238127,-13401.54653332,0.00017744,2]
[358094129,1744708238136,-3529.86588014,0.00017744,2]
[358094130,1744708238146,-3529.86588014,0.00017767,2]
[358094131,1744708238154,-3529.86588014,0.00017789,2]
[358094132,1744708238162,-500.0,0.00017799,2]
[358094133,1744708238171,-500.0,0.00017799,2]
[358094134,1744708238180,-236.01458432,0.00017799,2]
[358094135,1744708238189,-251.47943218,0.00017799,2]
[358094136,1744708238198,-167.87426939,0.00017799,2]
[358094137,1744708238207,-500.0,0.00017799,2]
[358094138,1744708238216,-500.0,0.00017799,2]
[358094139,1744708238225,-515.81426715,0.00017799,2]
[358094140,1744708238235,-505.7285063,0.00017799,2]
[358094141,1744708238245,-500.0,0.00017799,2]
[358094143,1744708238254,-526.90804206,0.00017799,2]
[358094144,1744708238263,-500.0,0.00017799,2]
[358094146,1744708238273,-500.0,0.00017799,2]
[358094148,1744708238283,-500.0,0.00017799,2]
[358094149,1744708238292,-500.0,0.00017799,2]
[358094150,1744708238302,-537.54945893,0.00017799,2]
[358094151,1744708238311,-500.0,0.00017799,2]
[358094152,1744708238320,-500.0,0.00017799,2]
[358094153,1744708238330,-500.0,0.00017799,2]
[358094154,1744708238339,-500.0,0.00017799,2]
[358094155,1744708238348,-500.0,0.00017799,2]
[358094156,1744708238357,-500.0,0.00017799,2]
[358094158,1744708238366,-500.0,0.00017799,2]
[358094160,1744708238375,-500.0,0.00017799,2]
[358094162,1744708238383,-500.0,0.00017799,2]
[358094164,1744708238392,-500.0,0.00017799,2]
[358094166,1744708238401,-517.67111049,0.00017799,2]
[358094183,1744708238600,-500.0,0.00017799,2]
[358094184,1744708238610,-500.0,0.00017799,2]
[358094185,1744708238619,-500.0,0.00017799,2]
[358094186,1744708238628,-500.0,0.00017799,2]
[358094187,1744708238638,-500.0,0.00017799,2]
[358094188,1744708238648,-500.0,0.00017799,2]
[358094189,1744708238657,-500.0,0.00017799,2]
[358094190,1744708238667,-500.0,0.00017799,2]
[358094191,1744708238676,-500.0,0.00017799,2]
[358094192,1744708238685,-500.0,0.00017799,2]
[358094193,1744708238694,-534.89883289,0.00017799,2]
[358094194,1744708238703,-500.0,0.00017799,2]
[358094195,1744708238712,-226.88110481,0.00017799,2]
[358094196,1744708238722,-500.0,0.00017799,2]
[358094197,1744708238731,-500.0,0.00017799,2]
[358094198,1744708238740,-520.91,0.00017799,2]
[358094199,1744708238749,-500.0,0.00017799,2]
[358094200,1744708238758,-500.0,0.00017799,2]
[358094201,1744708238767,-583.45510475,0.00017799,2]
[358094202,1744708238776,-500.0,0.00017799,2]
[358094203,1744708238785,-500.0,0.00017799,2]
[358094204,1744708238794,-500.0,0.00017799,2]
[358094205,1744708238803,-500.0,0.00017799,2]
[358094206,1744708238812,-500.0,0.00017799,2]
[358094207,1744708238821,-489.0,0.00017799,2]
[358094209,1744708238833,-500.0,0.00017799,2]
[358094211,1744708238842,-500.0,0.00017799,2]
[358094213,1744708238851,-500.0,0.00017799,2]
[358094215,1744708238860,-500.0,0.00017799,2]
[358094217,1744708238869,-500.0,0.00017799,2]
[358094219,1744708238879,-500.0,0.00017799,2]
[358094221,1744708238893,-349.93856088,0.00017799,2]
[358094223,1744708238906,-500.0,0.00017799,2]
[358094225,1744708238915,-500.0,0.00017799,2]
[358094227,1744708238924,-500.0,0.00017799,2]
[358094229,1744708238934,-500.0,0.00017799,2]
[358094231,1744708238943,-500.0,0.00017799,2]
[358094232,1744708238952,-525.98462211,0.00017799,2]
[358094233,1744708238961,-500.0,0.00017799,2]
[358094234,1744708238970,-500.0,0.00017799,2]
[358094235,1744708238980,-500.0,0.00017799,2]
[358094236,1744708238989,-500.0,0.00017799,2]
[358094237,1744708238997,-500.0,0.00017799,2]
[358094238,1744708239006,-500.0,0.00017799,2]
[358094239,1744708239016,-500.0,0.00017799,2]
[358094240,1744708239025,-500.0,0.00017799,2]
[358094241,1744708239035,-500.0,0.00017799,2]
[358094242,1744708239044,-500.0,0.00017799,2]
[358094243,1744708239054,-500.0,0.00017799,2]
[358094244,1744708239063,-500.0,0.00017799,2]
[358094245,1744708239073,-500.0,0.00017799,2]
[358094246,1744708239082,-500.0,0.00017799,2]
[358094247,1744708239092,-571.28684069,0.00017799,2]
[358094248,1744708239102,-500.0,0.00017799,2]
[358094249,1744708239111,-500.0,0.00017799,2]
[358094250,1744708239122,-500.0,0.00017799,2]
[358094251,1744708239132,-500.0,0.00017799,2]
[358094252,1744708239142,-500.0,0.00017799,2]
[358094253,1744708239152,-500.0,0.00017799,2]
[358094254,1744708239161,-174.04182012,0.00017799,2]
[358094255,1744708239171,-500.0,0.00017799,2]
[358094256,1744708239180,-506.03101098,0.00017799,2]
[358094257,1744708239189,-500.0,0.00017799,2]
[358094258,1744708239199,-500.0,0.00017799,2]
[358094259,1744708239208,-506.21591898,0.00017799,2]
[358094260,1744708239217,-500.0,0.00017799,2]
[358094261,1744708239226,-500.0,0.00017799,2]
[358094262,1744708239235,-500.0,0.00017799,2]
[358094263,1744708239245,-1000.0,0.00017799,2]
[358094264,1744708239255,-500.0,0.00017799,2]
[358094265,1744708239263,-500.0,0.00017799,2]
[358094266,1744708239273,-500.0,0.00017799,2]
[358094267,1744708239282,-500.0,0.00017799,2]
[358094268,1744708239291,-500.0,0.00017799,2]
[358094269,1744708239300,-500.0,0.00017799,2]
[358094270,1744708239309,-500.0,0.00017799,2]
[358094271,1744708239318,-500.0,0.00017799,2]
[358094272,1744708239327,-500.0,0.00017799,2]
[358094273,1744708239336,-500.0,0.00017799,2]
[358094274,1744708239345,-500.0,0.00017799,2]
[358094275,1744708239354,-500.0,0.00017799,2]
[358094276,1744708239362,-500.0,0.00017799,2]
[358094277,1744708239371,-500.0,0.00017799,2]
[358094278,1744708239380,-500.0,0.00017799,2]
[358094279,1744708239388,-500.0,0.00017799,2]
[358094280,1744708239398,-500.0,0.00017799,2]
[358094281,1744708239406,-500.0,0.00017799,2]
[358094282,1744708239415,-500.0,0.00017799,2]
[358094283,1744708239426,-8137.62,0.00017799,2]
[358094284,1744708239435,-500.0,0.00017799,2]
[358094285,1744708239444,-500.0,0.00017799,2]
[358094286,1744708239454,-500.0,0.00017799,2]
[358094287,1744708239463,-500.0,0.00017799,2]
[358094288,1744708239473,-500.0,0.00017799,2]
[358094289,1744708239487,-500.0,0.00017799,2]
[358094290,1744708239496,-500.0,0.00017799,2]
[358094291,1744708239506,-500.0,0.00017799,2]
[358094292,1744708239514,-500.0,0.00017799,2]
[358094293,1744708239525,-500.0,0.00017799,2]
[358094294,1744708239533,-500.0,0.00017799,2]
[358094295,1744708239541,-227.55828303,0.00017799,2]
[358094296,1744708239551,-500.0,0.00017799,2]
[358094297,1744708239560,-500.0,0.00017799,2]
[358094298,1744708239569,-500.0,0.00017799,2]
[358094299,1744708239578,-500.0,0.00017799,2]
[358094300,1744708239586,-500.0,0.00017799,2]
[358094301,1744708239594,-587.54583026,0.00017799,2]
[358094302,1744708239604,-500.0,0.00017799,2]
[358094303,1744708239613,-500.0,0.00017799,2]
[358094304,1744708239621,-500.0,0.00017799,2]
[358094305,1744708239630,-500.0,0.00017799,2]
[358094306,1744708239639,-547.41111946,0.00017799,2]
[358094307,1744708239648,-500.0,0.00017799,2]
[358094309,1744708239657,-500.0,0.00017799,2]
[358094311,1744708239666,-500.0,0.00017799,2]
[358094312,1744708239675,-500.0,0.00017799,2]
[358094313,1744708239683,-500.0,0.00017799,2]
[358094314,1744708239693,-500.0,0.00017799,2]
[358094315,1744708239703,-500.0,0.00017799,2]
[358094316,1744708239712,-500.0,0.00017799,2]
[358094317,1744708239720,-500.0,0.00017799,2]
[358094319,1744708239729,-500.0,0.00017799,2]
[358094321,1744708239739,-500.0,0.00017799,2]
[358094322,1744708239749,-500.0,0.00017799,2]
[358094323,1744708239758,-500.0,0.00017799,2]
[358094324,1744708239767,-500.0,0.00017799,2]
[358094325,1744708239776,-515.67407538,0.00017799,2]
[358094326,1744708239785,-500.0,0.00017799,2]
[358094327,1744708239794,-500.0,0.00017799,2]
[358094328,1744708239802,-624.28,0.00017799,2]
[358094329,1744708239811,-500.0,0.00017799,2]
[358094330,1744708239820,-500.0,0.00017799,2]
[358094331,1744708239829,-500.0,0.00017799,2]
[358094332,1744708239838,-500.0,0.00017799,2]
[358094333,1744708239847,-500.0,0.00017799,2]
[358094334,1744708239857,-500.0,0.00017799,2]
[358094335,1744708239866,-500.0,0.00017799,2]
[358094336,1744708239876,-500.0,0.00017799,2]
[358094337,1744708239885,-500.0,0.00017799,2]
[358094338,1744708239895,-500.0,0.00017799,2]
[358094339,1744708239904,-500.0,0.00017799,2]
[358094340,1744708239912,-500.0,0.00017799,2]
[358094341,1744708239921,-500.0,0.00017799,2]
[358094342,1744708239930,-500.0,0.00017799,2]
[358094343,1744708239938,-500.0,0.00017799,2]
[358094344,1744708239947,-500.0,0.00017799,2]
[358094345,1744708239956,-500.0,0.00017799,2]
[358094346,1744708239965,-500.0,0.00017799,2]
[358094347,1744708239974,-500.0,0.00017799,2]
[358094348,1744708239984,-500.0,0.00017799,2]
[358094349,1744708239992,-500.0,0.00017799,2]
[358094350,1744708240000,-500.0,0.00017799,2]
[358094351,1744708240009,-500.0,0.00017799,2]
[358094352,1744708240018,-500.0,0.00017799,2]
[358094353,1744708240027,-500.0,0.00017799,2]
[358094354,1744708240036,-500.0,0.00017799,2]
[358094355,1744708240046,-500.0,0.00017799,2]
[358094356,1744708240055,-500.0,0.00017799,2]
[358094357,1744708240065,-500.0,0.00017799,2]
[358094358,1744708240074,-500.0,0.00017799,2]
[358094359,1744708240083,-500.0,0.00017799,2]
[358094360,1744708240093,-500.0,0.00017799,2]
[358094361,1744708240102,-500.0,0.00017799,2]
[358094362,1744708240111,-500.0,0.00017799,2]
[358094363,1744708240122,-500.0,0.00017799,2]
[358094364,1744708240132,-500.0,0.00017799,2]
[358094365,1744708240141,-500.0,0.00017799,2]
[358094366,1744708240151,-500.0,0.00017799,2]
[358094367,1744708240161,-500.0,0.00017799,2]
[358094368,1744708240170,-500.0,0.00017799,2]
[358094369,1744708240179,-500.0,0.00017799,2]
[358094370,1744708240189,-500.0,0.00017799,2]
[358094371,1744708240198,-517.02337532,0.00017799,2]
[358094372,1744708240208,-500.0,0.00017799,2]
[358094373,1744708240217,-500.0,0.00017799,2]
[358094374,1744708240227,-500.0,0.00017799,2]
[358094375,1744708240236,-500.0,0.00017799,2]
[358094376,1744708240245,-500.0,0.00017799,2]
[358094377,1744708240254,-500.0,0.00017799,2]
[358094378,1744708240263,-500.0,0.00017799,2]
[358094379,1744708240272,-500.0,0.00017799,2]
[358094380,1744708240281,-213.07062754,0.00017799,2]
[358094381,1744708240290,-500.0,0.00017799,2]
[358094382,1744708240299,-500.0,0.00017799,2]
[358094383,1744708240308,-500.0,0.00017799,2]
[358094384,1744708240317,-500.0,0.00017799,2]
[358094385,1744708240326,-559.75306531,0.00017799,2]
[358094386,1744708240335,-500.0,0.00017799,2]
[358094387,1744708240344,-500.0,0.00017799,2]
[358094388,1744708240354,-500.0,0.00017799,2]
[358094389,1744708240364,-500.0,0.00017799,2]
[358094390,1744708240373,-500.0,0.00017799,2]
[358094391,1744708240383,-500.0,0.00017799,2]
[358094392,1744708240393,-500.0,0.00017799,2]
[358094393,1744708240402,-500.0,0.00017799,2]
[358094394,1744708240412,-500.0,0.00017799,2]
[358094395,1744708240422,-471.80297065,0.00017799,2]
[358094396,1744708240431,-500.0,0.00017799,2]
[358094397,1744708240440,-500.0,0.00017799,2]
[358094398,1744708240449,-500.0,0.00017799,2]
[358094399,1744708240458,-500.0,0.00017799,2]
[358094400,1744708240467,-323.38357231,0.00017799,2]
[358094401,1744708240481,-511.74342625,0.00017799,2]
[358094402,1744708240490,-500.0,0.00017799,2]
[358094403,1744708240499,-500.0,0.00017799,2]
[358094404,1744708240508,-500.0,0.00017799,2]
[358094405,1744708240519,-209.55,0.00017799,2]
[358094406,1744708240528,-500.0,0.00017799,2]
[358094407,1744708240537,-500.0,0.00017799,2]
[358094408,1744708240548,-500.0,0.00017799,2]
[358094409,1744708240558,-500.0,0.00017799,2]
[358094411,1744708240567,-500.0,0.00017799,2]
[358094412,1744708240577,-300.13760425,0.00017799,2]
[358094413,1744708240586,-500.0,0.00017799,2]
[358094414,1744708240595,-500.0,0.00017799,2]
[358094416,1744708240604,-500.0,0.00017799,2]
[358094417,1744708240613,-500.0,0.00017799,2]
[358094418,1744708240622,-500.0,0.00017799,2]
[358094419,1744708240631,-163.0511694,0.00017799,2]
[358094420,1744708240641,-500.0,0.00017799,2]
[358094421,1744708240650,-500.0,0.00017799,2]
[358094422,1744708240659,-500.0,0.00017799,2]
[358094423,1744708240668,-500.0,0.00017799,2]
[358094424,1744708240678,-500.0,0.00017799,2]
[358094425,1744708240687,-500.0,0.00017799,2]
[358094426,1744708240696,-500.0,0.00017799,2]
[358094427,1744708240706,-500.0,0.00017799,2]
[358094428,1744708240715,-500.0,0.00017799,2]
[358094429,1744708240724,-295121.9981,0.000178,2]
[358094430,1744708240734,-150.0,0.00017806,2]
[358094431,1744708240743,-3529.86588014,0.00017811,2]
[358094432,1744708240753,-151.9294947,0.0001782,2]
[358094433,1744708240762,-500.0,0.00017833,2]
[358094434,1744708240771,-500.0,0.00017833,2]
[358094435,1744708240781,-500.0,0.00017833,2]
[358094436,1744708240790,-3529.86588014,0.00017833,2]
[358094437,1744708240799,-500.0,0.00017854,2]
[358094438,1744708240809,-500.0,0.00017854,2]
[358094439,1744708240818,-156.39178343,0.00017854,2]
[358094440,1744708240828,-500.0,0.00017854,2]
[358094441,1744708240837,-500.0,0.00017854,2]
[358094442,1744708240847,-192.10253881,0.00017854,2]
[358094443,1744708240856,-500.0,0.00017854,2]
[358094444,1744708240865,-500.0,0.00017854,2]
[358094445,1744708240874,-500.0,0.00017854,2]
[358094446,1744708240882,-580.78263747,0.00017854,2]
[358094447,1744708240891,-500.0,0.00017854,2]
[358094448,1744708240900,-500.0,0.00017854,2]
[358094449,1744708240910,-500.0,0.00017854,2]
[358094450,1744708240920,-500.0,0.00017854,2]
[358094451,1744708240930,-500.0,0.00017854,2]
[358094452,1744708240939,-500.0,0.00017854,2]
[358094453,1744708240950,-500.0,0.00017854,2]
[358094454,1744708240960,-500.0,0.00017854,2]
[358094455,1744708240970,-500.0,0.00017854,2]
[358094456,1744708240980,-500.0,0.00017854,2]
[358094457,1744708240990,-166.48720725,0.00017854,2]
[358094458,1744708241000,-500.0,0.00017854,2]
[358094459,1744708241010,-490.16,0.00017855,2]
[358094460,1744708241019,-500.0,0.00017855,2]